[Event "Saint Louis Masters"]
[Date "2024.12.05"]
[White "Hakobyan, Aram"]
[Black "Heimann, Mark"]
[WhiteElo "2625"]
[BlackElo "2459"]
[Round "5.3"]
[Result "1/2-1/2"]
[TimeControl "5400+30"]

1. d4 {[%clk 01:30:57] [%emt 00:00:01]} Nf6 {[%clk 01:28:47] [%emt 00:02:14]} 2.
c4 {[%clk 01:30:12] [%emt 00:01:16]} e6 {[%clk 01:28:49] [%emt 00:00:28]} 3. Nf3
{[%clk 01:30:33] [%emt 00:00:09]} d5 {[%clk 01:29:13] [%emt 00:00:06]} 4. Nc3
{[%clk 01:30:51] [%emt 00:00:11]} Bb4 {[%clk 01:29:36] [%emt 00:00:08]} 5. Bg5
{[%clk 01:31:09] [%emt 00:00:11]} h6 {[%clk 01:29:58] [%emt 00:00:09]} 6. Bxf6
{[%clk 01:31:29] [%emt 00:00:10]} Qxf6 {[%clk 01:30:21] [%emt 00:00:07]} 7. e3
{[%clk 01:31:22] [%emt 00:00:37]} O-O {[%clk 01:30:37] [%emt 00:00:14]} 8. Rc1
{[%clk 01:30:11] [%emt 00:01:42]} dxc4 {[%clk 01:31:00] [%emt 00:00:07]} 9. Bxc4
{[%clk 01:30:31] [%emt 00:00:09]} c5 {[%clk 01:31:25] [%emt 00:00:06]} 10. O-O
{[%clk 01:30:48] [%emt 00:00:13]} cxd4 {[%clk 01:31:50] [%emt 00:00:05]} 11. Ne4
{[%clk 01:31:12] [%emt 00:00:06]} Qd8 {[%clk 01:31:58] [%emt 00:00:22]} 12. Nxd4
{[%clk 01:19:11] [%emt 00:12:31]} Nd7 {[%clk 01:25:32] [%emt 00:06:56]} 13. a3
{[%clk 01:14:15] [%emt 00:05:26]} Be7 {[%clk 01:24:50] [%emt 00:01:12]} 14. Bxe6
{[%clk 00:43:21] [%emt 00:31:24]} fxe6 {[%clk 01:24:30] [%emt 00:00:49]} 15.
Nxe6 {[%clk 00:43:39] [%emt 00:00:13]} Qb6 {[%clk 01:21:16] [%emt 00:03:44]} 16.
Nxf8 {[%clk 00:41:05] [%emt 00:03:03]} Nxf8 {[%clk 01:21:40] [%emt 00:00:06]}
17. b4 {[%clk 00:40:36] [%emt 00:00:59]} a5 {[%clk 01:06:55] [%emt 00:15:16]}
18. Nc3 {[%clk 00:38:07] [%emt 00:02:59]} axb4 {[%clk 00:59:22] [%emt 00:08:03]}
19. Nd5 {[%clk 00:38:26] [%emt 00:00:11]} Qd8 {[%clk 00:59:40] [%emt 00:00:11]}
20. axb4 {[%clk 00:37:01] [%emt 00:01:56]} Bd6 {[%clk 00:55:01] [%emt 00:05:09]}
21. Qd4 {[%clk 00:31:54] [%emt 00:05:36]} Ne6 {[%clk 00:52:06] [%emt 00:03:25]}
22. Qd3 {[%clk 00:25:34] [%emt 00:06:43]} Ng5 {[%clk 00:47:51] [%emt 00:04:53]}
23. f4 {[%clk 00:17:57] [%emt 00:08:06]} Nf7 {[%clk 00:48:13] [%emt 00:00:09]}
24. Qg6 {[%clk 00:17:24] [%emt 00:01:03]} Bd7 {[%clk 00:47:37] [%emt 00:01:06]}
25. e4 {[%clk 00:12:58] [%emt 00:04:56]} Ra6 {[%clk 00:47:01] [%emt 00:01:07]}
26. Qh5 {[%clk 00:12:08] [%emt 00:01:18]} Bc6 {[%clk 00:41:49] [%emt 00:05:44]}
27. Kh1 {[%clk 00:11:42] [%emt 00:00:55]} Qe8 {[%clk 00:38:47] [%emt 00:03:32]}
28. Rfe1 {[%clk 00:10:44] [%emt 00:01:28]} Bxd5 {[%clk 00:36:35] [%emt
00:02:42]} 29. exd5 {[%clk 00:11:12] [%emt 00:00:02]} Qd7 {[%clk 00:36:54] [%emt
00:00:10]} 30. b5 {[%clk 00:08:52] [%emt 00:02:50]} Rb6 {[%clk 00:31:43] [%emt
00:05:42]} 31. Qg6 {[%clk 00:06:02] [%emt 00:03:20]} Bc5 {[%clk 00:31:20] [%emt
00:00:53]} 32. Re6 {[%clk 00:05:58] [%emt 00:00:34]} Rxb5 {[%clk 00:31:22] [%emt
00:00:28]} 33. f5 {[%clk 00:06:01] [%emt 00:00:28]} Bf8 {[%clk 00:29:08] [%emt
00:02:43]} 34. f6 {[%clk 00:04:57] [%emt 00:01:34]} Rxd5 {[%clk 00:24:46] [%emt
00:04:52]} 35. fxg7 {[%clk 00:05:20] [%emt 00:00:07]} Rd1+ {[%clk 00:24:51]
[%emt 00:00:25]} 36. Re1 {[%clk 00:05:48] [%emt 00:00:02]} Rxe1+ {[%clk
00:25:17] [%emt 00:00:05]} 37. Rxe1 {[%clk 00:06:13] [%emt 00:00:04]} Bxg7
{[%clk 00:25:41] [%emt 00:00:06]} 38. Qb6 {[%clk 00:05:50] [%emt 00:00:51]} Qc6
{[%clk 00:25:18] [%emt 00:00:55]} 39. Qb3 {[%clk 00:05:35] [%emt 00:00:43]} b6
{[%clk 00:22:14] [%emt 00:03:36]} 40. Rb1 {[%clk 00:05:56] [%emt 00:00:09]} Bd4
{[%clk 00:19:45] [%emt 00:02:59]} 41. Qg3+ {[%clk 00:06:21] [%emt 00:00:05]} Kf8
{[%clk 00:17:14] [%emt 00:03:01]} 42. Rf1 {[%clk 00:06:02] [%emt 00:00:48]} Qe6
{[%clk 00:17:09] [%emt 00:00:35]} 43. Qd3 {[%clk 00:04:36] [%emt 00:01:56]} Be5
{[%clk 00:15:12] [%emt 00:02:28]} 44. Qe3 {[%clk 00:05:06]} Kg7 {[%clk 00:14:48]
[%emt 00:00:53]} 45. Rb1 {[%clk 00:05:09] [%emt 00:00:26]} Qd6 {[%clk 00:15:05]
[%emt 00:00:14]} 46. Qxb6 {[%clk 00:05:19] [%emt 00:00:20]} Bxh2 {[%clk
00:15:00] [%emt 00:00:35]} 47. Qxd6 {[%clk 00:05:08] [%emt 00:00:41]} Bxd6
{[%clk 00:15:27] [%emt 00:00:04]} 1/2-1/2

[Site "Europe Echecs"]

[Event "Saint Louis Masters"]
[Date "2024.12.05"]
[White "Robson, Ray"]
[Black "Zhou, Jianchao"]
[WhiteElo "2700"]
[BlackElo "2572"]
[Round "5.4"]
[Result "1/2-1/2"]
[TimeControl "5400+30"]

1. e4 {[%clk 01:27:22] [%emt 00:03:37]} c5 {[%clk 01:29:42] [%emt 00:01:18]} 2.
Nf3 {[%clk 01:27:42] [%emt 00:00:10]} e6 {[%clk 01:29:36] [%emt 00:00:37]} 3. d4
{[%clk 01:27:31] [%emt 00:00:40]} cxd4 {[%clk 01:30:04] [%emt 00:00:03]} 4. Nxd4
{[%clk 01:27:49] [%emt 00:00:11]} Nc6 {[%clk 01:30:29] [%emt 00:00:05]} 5. Nc3
{[%clk 01:27:58] [%emt 00:00:21]} Qc7 {[%clk 01:30:57] [%emt 00:00:03]} 6. Qd3
{[%clk 01:27:46] [%emt 00:00:41]} Nxd4 {[%clk 01:25:15] [%emt 00:06:13]} 7. Qxd4
{[%clk 01:28:04] [%emt 00:00:12]} a6 {[%clk 01:25:40] [%emt 00:00:05]} 8. Be3
{[%clk 01:20:01] [%emt 00:08:32]} b5 {[%clk 01:25:39] [%emt 00:00:30]} 9. f3
{[%clk 01:16:59] [%emt 00:03:32]} Bb7 {[%clk 01:25:23] [%emt 00:00:47]} 10. a4
{[%clk 01:15:44] [%emt 00:01:45]} b4 {[%clk 01:19:22] [%emt 00:06:32]} 11. Na2
{[%clk 01:15:43] [%emt 00:00:30]} Nf6 {[%clk 01:18:53] [%emt 00:00:59]} 12. Nxb4
{[%clk 01:09:55] [%emt 00:06:18]} d5 {[%clk 01:18:31] [%emt 00:00:52]} 13. e5
{[%clk 00:53:38] [%emt 00:16:48]} Nd7 {[%clk 01:18:40] [%emt 00:00:20]} 14. Nd3
{[%clk 00:52:33] [%emt 00:01:34]} a5 {[%clk 01:18:02] [%emt 00:01:09]} 15. Qc3
{[%clk 00:47:29] [%emt 00:05:34]} Qb8 {[%clk 01:13:16] [%emt 00:05:16]} 16. f4
{[%clk 00:36:45] [%emt 00:11:14]} Ba6 {[%clk 01:12:29] [%emt 00:01:18]} 17. Nc5
{[%clk 00:21:23] [%emt 00:15:52]} Bxf1 {[%clk 01:04:32] [%emt 00:08:26]} 18.
Rxf1 {[%clk 00:21:19] [%emt 00:00:34]} Be7 {[%clk 00:51:53] [%emt 00:13:10]} 19.
O-O-O {[%clk 00:17:50] [%emt 00:03:59]} Nxc5 {[%clk 00:36:21] [%emt 00:16:01]}
20. Bxc5 {[%clk 00:18:16] [%emt 00:00:04]} Qc7 {[%clk 00:35:38] [%emt 00:01:12]}
21. Bb4 {[%clk 00:16:22] [%emt 00:02:25]} Qxc3 {[%clk 00:24:19] [%emt 00:11:50]}
22. Bxc3 {[%clk 00:16:48] [%emt 00:00:03]} g6 {[%clk 00:24:39] [%emt 00:00:10]}
23. Rf3 {[%clk 00:15:01] [%emt 00:02:17]} Kd7 {[%clk 00:23:14] [%emt 00:01:56]}
24. Be1 {[%clk 00:13:50] [%emt 00:01:40]} Rhc8 {[%clk 00:21:39] [%emt 00:02:05]}
25. Rc3 {[%clk 00:12:46] [%emt 00:01:34]} Rcb8 {[%clk 00:19:08] [%emt 00:03:02]}
26. Rcd3 {[%clk 00:12:48] [%emt 00:00:27]} h5 {[%clk 00:17:40] [%emt 00:01:58]}
27. Kb1 {[%clk 00:11:25] [%emt 00:01:53]} Rc8 {[%clk 00:17:33] [%emt 00:00:38]}
28. g3 {[%clk 00:11:07] [%emt 00:00:48]} Ke8 {[%clk 00:11:42] [%emt 00:06:20]}
29. h3 {[%clk 00:10:02] [%emt 00:01:34]} Rc4 {[%clk 00:11:12] [%emt 00:01:01]}
30. Rd4 {[%clk 00:08:53] [%emt 00:01:39]} Rcc8 {[%clk 00:09:54] [%emt 00:01:49]}
31. g4 {[%clk 00:08:17] [%emt 00:01:05]} hxg4 {[%clk 00:09:51] [%emt 00:00:34]}
32. hxg4 {[%clk 00:08:45] [%emt 00:00:02]} f6 {[%clk 00:08:04] [%emt 00:02:17]}
33. b3 {[%clk 00:07:09] [%emt 00:02:05]} fxe5 {[%clk 00:06:56] [%emt 00:01:39]}
34. fxe5 {[%clk 00:07:37] [%emt 00:00:02]} Rc6 {[%clk 00:05:05] [%emt 00:02:21]}
35. Rf4 {[%clk 00:05:49] [%emt 00:02:18]} Bd8 {[%clk 00:04:08] [%emt 00:01:27]}
36. Rf2 {[%clk 00:05:35] [%emt 00:00:44]} Bc7 {[%clk 00:04:28] [%emt 00:00:11]}
37. Re2 {[%clk 00:05:42] [%emt 00:00:22]} Rb8 {[%clk 00:04:20] [%emt 00:00:38]}
38. Ka2 {[%clk 00:05:05] [%emt 00:01:06]} Kf7 {[%clk 00:04:32] [%emt 00:00:19]}
39. Rd3 {[%clk 00:04:07] [%emt 00:01:27]} Rh8 {[%clk 00:04:52] [%emt 00:00:10]}
40. Rf3+ {[%clk 00:03:09] [%emt 00:01:28]} Ke8 {[%clk 00:05:20] [%emt 00:00:02]}
41. Rf6 {[%clk 00:01:31] [%emt 00:02:09]} Bd8 {[%clk 00:05:44] [%emt 00:00:06]}
42. Rff2 {[%clk 00:01:12] [%emt 00:00:49]} Bc7 {[%clk 00:05:39] [%emt 00:00:36]}
43. Kb2 {[%clk 00:00:50] [%emt 00:00:52]} Rh1 {[%clk 00:05:28] [%emt 00:00:40]}
44. Bc3 {[%clk 00:01:03] [%emt 00:00:17]} Rh4 {[%clk 00:05:03] [%emt 00:00:55]}
45. Rf3 {[%clk 00:00:32] [%emt 00:01:01]} Bb6 {[%clk 00:03:16] [%emt 00:02:17]}
46. Rg2 {[%clk 00:00:58] [%emt 00:00:04]} g5 {[%clk 00:03:13] [%emt 00:00:33]}
47. Be1 {[%clk 00:00:40] [%emt 00:00:48]} Rh1 {[%clk 00:03:09] [%emt 00:00:34]}
48. Bf2 {[%clk 00:00:35] [%emt 00:00:34]} Rf1 {[%clk 00:03:15] [%emt 00:00:24]}
49. Rf6 {[%clk 00:00:42] [%emt 00:00:23]} Bc7 {[%clk 00:03:34] [%emt 00:00:11]}
50. Bd4 {[%clk 00:00:34] [%emt 00:00:38]} Rxf6 {[%clk 00:03:58] [%emt 00:00:06]}
51. exf6 {[%clk 00:01:03] [%emt 00:00:02]} Kf7 {[%clk 00:03:10] [%emt 00:01:19]}
52. Re2 {[%clk 00:00:35] [%emt 00:00:58]} Bb6 {[%clk 00:01:58] [%emt 00:01:42]}
53. Be5 {[%clk 00:00:35] [%emt 00:00:29]} Bc7 {[%clk 00:02:15] [%emt 00:00:13]}
54. Bd4 {[%clk 00:00:33] [%emt 00:00:32]} Bb6 {[%clk 00:02:44] [%emt 00:00:01]}
55. c3 {[%clk 00:00:32] [%emt 00:00:31]} Bxd4 {[%clk 00:03:07] [%emt 00:00:07]}
56. cxd4 {[%clk 00:01:01]} Kxf6 {[%clk 00:02:44] [%emt 00:00:53]} 57. Rf2+
{[%clk 00:00:54] [%emt 00:00:36]} Ke7 {[%clk 00:03:00] [%emt 00:00:15]} 58. Rc2
{[%clk 00:01:09] [%emt 00:00:15]} Ra6 {[%clk 00:01:56] [%emt 00:01:35]} 59. Rc8
{[%clk 00:01:04] [%emt 00:00:35]} Ra7 {[%clk 00:02:07] [%emt 00:00:19]} 60. Rh8
{[%clk 00:00:32] [%emt 00:01:01]} Kd6 {[%clk 00:02:30] [%emt 00:00:07]} 61. Rd8+
{[%clk 00:00:32] [%emt 00:00:30]} Kc6 {[%clk 00:02:58] [%emt 00:00:02]} 62. Rc8+
{[%clk 00:00:34] [%emt 00:00:29]} Kd6 {[%clk 00:03:27] [%emt 00:00:02]} 63. Rd8+
{[%clk 00:00:32] [%emt 00:00:31]} Kc6 {[%clk 00:03:55]} 64. Rc8+ {[%clk
00:00:33] [%emt 00:00:30]} Kd6 {[%clk 00:04:24] [%emt 00:00:01]} 65. Rb8 {[%clk
00:00:37] [%emt 00:00:25]} Kc6 {[%clk 00:02:52] [%emt 00:02:03]} 66. Rb5 {[%clk
00:00:52] [%emt 00:00:15]} Ra8 {[%clk 00:01:38] [%emt 00:01:44]} 67. Kc3 {[%clk
00:01:00] [%emt 00:00:22]} Kd6 {[%clk 00:01:23] [%emt 00:00:45]} 68. Rb6+ {[%clk
00:00:38] [%emt 00:00:52]} Kd7 {[%clk 00:01:50] [%emt 00:00:02]} 69. Rb5 {[%clk
00:00:35] [%emt 00:00:34]} Kd6 {[%clk 00:01:50] [%emt 00:00:30]} 70. Kd2 {[%clk
00:00:32] [%emt 00:00:33]} e5 {[%clk 00:01:36] [%emt 00:00:44]} 71. Rb6+ {[%clk
00:00:33] [%emt 00:00:29]} Kc7 {[%clk 00:02:04] [%emt 00:00:02]} 72. Rg6 {[%clk
00:00:36] [%emt 00:00:26]} exd4 {[%clk 00:02:14] [%emt 00:00:21]} 73. Rxg5
{[%clk 00:00:51] [%emt 00:00:15]} Kd6 {[%clk 00:02:02] [%emt 00:00:42]} 74. Kd3
{[%clk 00:00:39] [%emt 00:00:42]} 1/2-1/2

[Site "Europe Echecs"]

[Event "Saint Louis Masters"]
[Date "2024.12.05"]
[White "Vazquez, Guillermo"]
[Black "Sevian, Samuel"]
[WhiteElo "2569"]
[BlackElo "2696"]
[Round "5.5"]
[Result "1/2-1/2"]
[TimeControl "5400+30"]

1. e4 {[%clk 01:30:57]} c5 {[%clk 01:23:23] [%emt 00:07:38]} 2. c3 {[%clk
01:30:14] [%emt 00:01:12]} Qa5 {[%clk 01:12:21] [%emt 00:11:32]} 3. g3 {[%clk
01:27:25] [%emt 00:03:19]} Nc6 {[%clk 01:11:29] [%emt 00:01:23]} 4. Bg2 {[%clk
01:27:21] [%emt 00:00:33]} g6 {[%clk 00:57:00] [%emt 00:14:59]} 5. Ne2 {[%clk
01:27:16] [%emt 00:00:35]} Ne5 {[%clk 00:54:05] [%emt 00:03:27]} 6. d3 {[%clk
01:04:33] [%emt 00:23:12]} Qa6 {[%clk 00:54:05] [%emt 00:00:30]} 7. Nf4 {[%clk
01:04:56] [%emt 00:00:07]} Bh6 {[%clk 00:43:16] [%emt 00:11:19]} 8. Bf1 {[%clk
01:00:14] [%emt 00:05:11]} Qa5 {[%clk 00:35:32] [%emt 00:08:14]} 9. Bg2 {[%clk
00:56:14] [%emt 00:04:30]} d6 {[%clk 00:33:18] [%emt 00:02:45]} 10. O-O {[%clk
00:56:12] [%emt 00:00:32]} Bg4 {[%clk 00:32:41] [%emt 00:01:07]} 11. Qb3 {[%clk
00:46:41] [%emt 00:10:00]} Rb8 {[%clk 00:32:59] [%emt 00:00:13]} 12. d4 {[%clk
00:45:37] [%emt 00:01:34]} cxd4 {[%clk 00:31:52] [%emt 00:01:37]} 13. cxd4
{[%clk 00:46:00] [%emt 00:00:07]} Nc6 {[%clk 00:32:16] [%emt 00:00:06]} 14. Be3
{[%clk 00:45:31] [%emt 00:00:58]} Bd7 {[%clk 00:25:40] [%emt 00:07:07]} 15. Nd2
{[%clk 00:39:56] [%emt 00:06:04]} Bg7 {[%clk 00:17:41] [%emt 00:08:29]} 16. Nc4
{[%clk 00:31:24] [%emt 00:09:03]} Qd8 {[%clk 00:17:38] [%emt 00:00:33]} 17. d5
{[%clk 00:28:59] [%emt 00:02:55]} Na5 {[%clk 00:17:30] [%emt 00:00:38]} 18. Qb4
{[%clk 00:29:07] [%emt 00:00:23]} Nxc4 {[%clk 00:17:45] [%emt 00:00:14]} 19.
Qxc4 {[%clk 00:29:35] [%emt 00:00:02]} Qa5 {[%clk 00:15:48] [%emt 00:02:27]} 20.
a4 {[%clk 00:26:20] [%emt 00:03:44]} Nf6 {[%clk 00:10:11] [%emt 00:06:07]} 21.
b4 {[%clk 00:19:05] [%emt 00:07:45]} Qa6 {[%clk 00:10:36] [%emt 00:00:06]} 22.
b5 {[%clk 00:19:21] [%emt 00:00:13]} Qa5 {[%clk 00:11:03] [%emt 00:00:04]} 23.
Ra2 {[%clk 00:19:35] [%emt 00:00:17]} Rc8 {[%clk 00:08:15] [%emt 00:03:18]} 24.
Qe2 {[%clk 00:20:01] [%emt 00:00:03]} Ng4 {[%clk 00:07:17] [%emt 00:01:27]} 25.
Bc1 {[%clk 00:16:33] [%emt 00:03:58]} Ne5 {[%clk 00:06:13] [%emt 00:01:34]} 26.
Bd2 {[%clk 00:16:26] [%emt 00:00:38]} Qb6 {[%clk 00:06:18] [%emt 00:00:25]} 27.
Be3 {[%clk 00:16:29] [%emt 00:00:27]} Qa5 {[%clk 00:06:47] [%emt 00:00:01]} 28.
Bd2 {[%clk 00:14:31] [%emt 00:02:27]} Qd8 {[%clk 00:07:16] [%emt 00:00:01]} 29.
Rc1 {[%clk 00:14:00] [%emt 00:01:01]} Rxc1+ {[%clk 00:07:03] [%emt 00:00:44]}
30. Bxc1 {[%clk 00:14:28] [%emt 00:00:02]} O-O {[%clk 00:07:27] [%emt 00:00:05]}
31. Be3 {[%clk 00:14:09] [%emt 00:00:49]} Qa5 {[%clk 00:07:09] [%emt 00:00:48]}
32. h3 {[%clk 00:12:01] [%emt 00:02:37]} Rc8 {[%clk 00:07:27] [%emt 00:00:13]}
33. Nd3 {[%clk 00:11:54] [%emt 00:00:37]} Nc4 {[%clk 00:06:30] [%emt 00:01:27]}
34. Bf4 {[%clk 00:12:12] [%emt 00:00:12]} a6 {[%clk 00:03:59] [%emt 00:03:01]}
35. bxa6 {[%clk 00:11:49] [%emt 00:00:54]} Qxa6 {[%clk 00:04:28]} 36. e5 {[%clk
00:10:01] [%emt 00:02:17]} dxe5 {[%clk 00:00:39] [%emt 00:04:19]} 37. Nxe5
{[%clk 00:10:27] [%emt 00:00:04]} Nxe5 {[%clk 00:00:32] [%emt 00:00:37]} 38.
Bxe5 {[%clk 00:10:54] [%emt 00:00:02]} Qxe2 {[%clk 00:00:35] [%emt 00:00:28]}
39. Rxe2 {[%clk 00:11:23]} Bxe5 {[%clk 00:00:47] [%emt 00:00:18]} 40. Rxe5
{[%clk 00:11:51] [%emt 00:00:02]} Kf8 {[%clk 00:00:59] [%emt 00:00:18]} 41. Re4
{[%clk 00:11:53] [%emt 00:00:29]} Ra8 {[%clk 00:00:38] [%emt 00:00:51]} 42. Rb4
{[%clk 00:12:21] [%emt 00:00:02]} Ra7 {[%clk 00:01:05] [%emt 00:00:03]} 43. a5
{[%clk 00:12:37] [%emt 00:00:13]} Ke8 {[%clk 00:01:32] [%emt 00:00:03]} 44. Rh4
{[%clk 00:07:21] [%emt 00:05:46]} Kf8 {[%clk 00:00:34] [%emt 00:01:28]} 45. Rb4
{[%clk 00:07:41] [%emt 00:00:10]} h5 {[%clk 00:00:43] [%emt 00:00:22]} 46. d6
{[%clk 00:07:53] [%emt 00:00:18]} Rxa5 {[%clk 00:00:33] [%emt 00:00:40]} 47.
Rxb7 {[%clk 00:07:56] [%emt 00:00:27]} Ba4 {[%clk 00:00:52] [%emt 00:00:11]} 48.
dxe7+ {[%clk 00:06:14] [%emt 00:02:13]} Ke8 {[%clk 00:01:01] [%emt 00:00:21]}
49. Rb8+ {[%clk 00:04:03] [%emt 00:02:40]} 1/2-1/2

[Site "Europe Echecs"]

[Event "Saint Louis Masters"]
[Date "2024.12.05"]
[White "Kevlishvili, Robby"]
[Black "Saric, Ivan"]
[WhiteElo "2556"]
[BlackElo "2669"]
[Round "5.6"]
[Result "1-0"]
[TimeControl "5400+30"]

1. e4 {[%clk 01:30:56] [%emt 00:00:02]} c5 {[%clk 01:30:56] [%emt 00:00:05]} 2.
Nf3 {[%clk 01:31:22] [%emt 00:00:04]} d6 {[%clk 01:31:21] [%emt 00:00:06]} 3. d4
{[%clk 01:31:47] [%emt 00:00:04]} cxd4 {[%clk 01:31:47] [%emt 00:00:04]} 4. Nxd4
{[%clk 01:32:12] [%emt 00:00:05]} Nf6 {[%clk 01:32:13] [%emt 00:00:04]} 5. Nc3
{[%clk 01:32:37] [%emt 00:00:05]} a6 {[%clk 01:31:55] [%emt 00:00:48]} 6. Be3
{[%clk 01:33:00] [%emt 00:00:06]} e5 {[%clk 01:32:02] [%emt 00:00:24]} 7. Nb3
{[%clk 01:33:24] [%emt 00:00:06]} Be7 {[%clk 01:31:41] [%emt 00:00:52]} 8. h3
{[%clk 01:33:05] [%emt 00:00:47]} Be6 {[%clk 01:31:03] [%emt 00:01:09]} 9. Qf3
{[%clk 01:33:26] [%emt 00:00:08]} O-O {[%clk 01:29:56] [%emt 00:01:38]} 10.
O-O-O {[%clk 01:33:48] [%emt 00:00:08]} b5 {[%clk 01:30:14] [%emt 00:00:12]} 11.
g4 {[%clk 01:34:12] [%emt 00:00:05]} b4 {[%clk 01:30:36] [%emt 00:00:09]} 12.
Nd5 {[%clk 01:34:39] [%emt 00:00:03]} a5 {[%clk 01:29:13] [%emt 00:01:53]} 13.
Nd2 {[%clk 01:33:40] [%emt 00:01:30]} Nc6 {[%clk 01:18:20] [%emt 00:11:23]} 14.
g5 {[%clk 01:22:09] [%emt 00:12:00]} Nd7 {[%clk 01:17:26] [%emt 00:01:24]} 15.
h4 {[%clk 01:22:33] [%emt 00:00:06]} a4 {[%clk 01:13:53] [%emt 00:04:03]} 16.
Kb1 {[%clk 01:21:56] [%emt 00:01:06]} Nd4 {[%clk 00:47:49] [%emt 00:26:35]} 17.
Bxd4 {[%clk 01:20:35] [%emt 00:01:51]} exd4 {[%clk 00:48:15] [%emt 00:00:04]}
18. Nc4 {[%clk 01:20:36] [%emt 00:00:29]} Ne5 {[%clk 00:46:22] [%emt 00:02:23]}
19. Qg3 {[%clk 01:20:25] [%emt 00:00:40]} b3 {[%clk 00:37:18] [%emt 00:09:35]}
20. cxb3 {[%clk 01:15:43] [%emt 00:05:12]} axb3 {[%clk 00:37:43] [%emt
00:00:05]} 21. a3 {[%clk 01:12:26] [%emt 00:03:47]} Bxd5 {[%clk 00:37:28] [%emt
00:00:45]} 22. exd5 {[%clk 01:12:50] [%emt 00:00:06]} Qc7 {[%clk 00:33:46] [%emt
00:04:11]} 23. Rc1 {[%clk 01:08:48] [%emt 00:04:32]} Qd7 {[%clk 00:29:33] [%emt
00:04:43]} 24. Bd3 {[%clk 01:03:36] [%emt 00:05:42]} Nxc4 {[%clk 00:25:45] [%emt
00:04:19]} 25. Rxc4 {[%clk 01:03:56] [%emt 00:00:09]} Rfc8 {[%clk 00:26:12]
[%emt 00:00:03]} 26. Qh3 {[%clk 00:57:49] [%emt 00:06:37]} Qxh3 {[%clk 00:25:09]
[%emt 00:01:33]} 27. Rxh3 {[%clk 00:58:03] [%emt 00:00:15]} f6 {[%clk 00:21:10]
[%emt 00:04:30]} 28. g6 {[%clk 00:53:55] [%emt 00:04:38]} hxg6 {[%clk 00:14:07]
[%emt 00:07:34]} 29. Rxc8+ {[%clk 00:54:14] [%emt 00:00:10]} Rxc8 {[%clk
00:14:34] [%emt 00:00:03]} 30. Bxg6 {[%clk 00:54:38] [%emt 00:00:06]} f5 {[%clk
00:13:57] [%emt 00:01:08]} 31. Rxb3 {[%clk 00:53:48] [%emt 00:01:19]} Bxh4
{[%clk 00:13:50] [%emt 00:00:37]} 32. Bxf5 {[%clk 00:53:11] [%emt 00:01:07]} Rc5
{[%clk 00:10:49] [%emt 00:03:32]} 33. Rf3 {[%clk 00:48:10] [%emt 00:05:30]} Kf7
{[%clk 00:09:07] [%emt 00:02:13]} 34. b4 {[%clk 00:47:32] [%emt 00:01:07]} Rc7
{[%clk 00:06:02] [%emt 00:03:35]} 35. Kb2 {[%clk 00:47:31] [%emt 00:00:31]} Kf6
{[%clk 00:06:11] [%emt 00:00:21]} 36. Bd3+ {[%clk 00:47:30] [%emt 00:00:31]} Ke7
{[%clk 00:04:58] [%emt 00:01:43]} 37. Bg6 {[%clk 00:46:08] [%emt 00:01:51]} Bf6
{[%clk 00:05:08] [%emt 00:00:20]} 38. Kb3 {[%clk 00:46:34] [%emt 00:00:05]} Rc1
{[%clk 00:05:19] [%emt 00:00:20]} 39. a4 {[%clk 00:46:55] [%emt 00:00:09]} Kd7
{[%clk 00:05:17] [%emt 00:00:31]} 40. a5 {[%clk 00:46:38] [%emt 00:00:48]} Kc7
{[%clk 00:05:39] [%emt 00:00:08]} 41. Ka4 {[%clk 00:46:22] [%emt 00:00:46]} Kb7
{[%clk 00:04:26] [%emt 00:01:42]} 42. Kb5 {[%clk 00:45:48] [%emt 00:01:03]} Re1
{[%clk 00:04:13] [%emt 00:00:44]} 43. Rh3 {[%clk 00:44:06] [%emt 00:02:11]} Re5
{[%clk 00:04:24] [%emt 00:00:20]} 44. Rh5 {[%clk 00:42:33] [%emt 00:02:03]} Re2
{[%clk 00:01:01] [%emt 00:03:53]} 45. Rh8 {[%clk 00:42:16] [%emt 00:00:47]} Re5
{[%clk 00:00:43] [%emt 00:00:49]} 46. Re8 {[%clk 00:41:40] [%emt 00:01:06]}
Rxd5+ {[%clk 00:01:02] [%emt 00:00:12]} 47. Kc4 {[%clk 00:42:00] [%emt
00:00:10]} Re5 {[%clk 00:00:51] [%emt 00:00:41]} 48. Be4+ {[%clk 00:42:05] [%emt
00:00:25]} d5+ {[%clk 00:00:41] [%emt 00:00:39]} 49. Bxd5+ {[%clk 00:42:29]
[%emt 00:00:06]} Kc7 {[%clk 00:01:08] [%emt 00:00:04]} 50. Rxe5 {[%clk 00:42:53]
[%emt 00:00:06]} Bxe5 {[%clk 00:01:34] [%emt 00:00:03]} 51. b5 {[%clk 00:43:11]
[%emt 00:00:13]} d3 {[%clk 00:01:41] [%emt 00:00:22]} 52. b6+ {[%clk 00:43:24]
[%emt 00:00:16]} Kd6 {[%clk 00:01:38] [%emt 00:00:34]} 53. a6 {[%clk 00:43:44]
[%emt 00:00:11]}

[Site "Europe Echecs"]